[Event "Super United Croatia GCT Blitz 2022"]
[Site "Zagreb"]
[Date "2022.07.23"]
[Round "8"]
[White "Saric, Ivan"]
[Black "Dominguez Perez, Leinier"]
[Result "0-1"]
[ECO "C42"]
[WhiteElo "2680"]
[BlackElo "2754"]
[Annotator "TA"]
[PlyCount "112"]
[EventDate "2022.07.20"]
[EventType "tourn"]
[EventCountry "CRO"]
[SourceTitle "playchess.com"]
[Source "ChessBase"]
[SourceQuality "1"]
[TimeControl "300+2"]

{[%evp 13,112,15,23,14,10,16,27,24,14,0,0,0,0,-22,-22,-27,-19,-8,10,17,14,7,10,0,13,-10,-8,-17,-18,-9,-9,-19,-6,-14,0,0,0,-4,22,0,41,35,116,119,108,93,120,116,174,140,164,162,174,173,169,166,191,171,170,137,191,178,295,287,414,412,332,256,460,353,939,405,937,537,475,316,303,156,155,90,72,0,0,-83,-87,-29959,-29959,-29959,-29960,-29953,-29953,-12850,-12849,-5173,-4963,-4963,-2727,-29995,-29996,-29997,-29998]} 1. e4 {[%emt 0:00:01]} e5 {[%emt 0:00:01]} 2. Nf3 {[%emt 0:00:01]} Nf6 {[%emt 0:00:02]} 3. Nxe5 {[%emt 0:00:01]} d6 {[%emt 0:00:00]} 4. Nf3 {[%emt 0:00:00]} Nxe4 {[%emt 0:00:02]} 5. Nc3 {[%emt 0:00:01]} Nxc3 {[%emt 0:00:01]} 6. dxc3 {[%emt 0:00:01]} Be7 {[%emt 0:00:02]} 7. Be3 {[%emt 0:00:01]} O-O {[%emt 0:00:03]} 8. Qd2 {[%emt 0:00:01] C42: Petroff Defence: 3 Nxe5 and unusual White 3rd moves.} Nd7 {[%emt 0:00:01]} 9. O-O-O {[%emt 0:00:02]} Nf6 {[%emt 0:00:01]} 10. Bd3 {[%emt 0:00:08] White has an edge.} Re8 {[%emt 0:00:02]} 11. Kb1 {[%emt 0:00:09]} d5 {[%emt 0:00:03]} 12. h4 {[%emt 0:00:10]} c5 {[%emt 0:00:08][%cal Bc7c5,Bc5c4][%mdl 32] [#]} 13. c4 $146 {[%emt 0:01:11]} ({Predecessor:} 13. h5 h6 14. Bxh6 gxh6 15. Qxh6 Bf8 16. Qg5+ Kh8 17. Ne5 Rxe5 18. Qxe5 Qd6 19. Qg5 {0-1 (64) Janaszak,D (2334)-Paravyan,D (2617) Chess.com INT 2022}) 13... b5 {[%emt 0:00:10]} 14. cxd5 {[%emt 0:00:12]} c4 {[%emt 0:00:02]} 15. d6 {[%emt 0:00:12]} Bf8 {[%emt 0:01:51]} 16. Be2 {[%emt 0:00:10]} Bb7 {[%emt 0:00:10]} 17. Ng5 {[%emt 0:00:17]} h6 {[%emt 0:00:19]} 18. Bf3 Qd7 {[%emt 0:00:31]} 19. Bxb7 {[%emt 0:00:31]} Qxb7 {[%emt 0:00:01]} 20. Bd4 {[%emt 0:00:10]} Rad8 $1 {[%emt 0:01:18]} (20... hxg5 21. hxg5 Nh7 22. Rh5 $16) 21. Bxf6 {[%emt 0:00:08]} gxf6 {[%emt 0:00:11]} 22. Nf3 {[%emt 0:00:44]} Rxd6 {[%emt 0:00:01]} 23. Qf4 {[%emt 0:00:06]} Rxd1+ {[%emt 0:00:17]} 24. Rxd1 {[%emt 0:00:01]} Qe4 {[%emt 0:00:05]} 25. Qxf6 {[%emt 0:00:28]} Bg7 {[%emt 0:00:01]} 26. Qd6 {[%emt 0:00:04]} Qf5 {[%emt 0:00:17]} 27. Qd7 {[%emt 0:00:19]} Re6 {[%emt 0:00:10]} (27... Qxd7 $14 28. Rxd7 Re2) 28. a3 $1 $16 {[%emt 0:00:11]} a6 {[%emt 0:00:05]} 29. Nd4 {[%emt 0:00:08]} Bxd4 {[%emt 0:00:02]} 30. Qxd4 {[%emt 0:00:06][%mdl 4096] Endgame KQR-KQR} (30. Rxd4 $6 Kg7 $11) 30... Re2 {[%emt 0:00:00]} (30... Kh7 $16 {was worth a try.}) 31. Rd2 {[%emt 0:00:06]} Re1+ {[%emt 0:00:02]} 32. Ka2 {[%emt 0:00:07]} Re4 {[%emt 0:00:00]} 33. Qd8+ {[%emt 0:00:03]} Kg7 {[%emt 0:00:01]} 34. f3 $36 {[%emt 0:00:04][%mdl 2048] Black is under strong pressure.} Re1 {[%emt 0:00:07]} 35. Qd4+ {[%emt 0:00:03]} Kh7 {[%emt 0:00:01]} 36. g4 {[%emt 0:00:07][%cal Bg2g4,Bg4g5,Bg5h6][%mdl 32]} Qxf3 {[%emt 0:00:02]} (36... Qe6 $16 37. Rd1 Rxd1 38. Qxd1 f5) 37. Rf2 $18 {[%emt 0:00:00]} Qb7 {[%emt 0:00:03]} (37... Rd1 {was necessary.}) 38. g5 {[%emt 0:00:04] Hoping for Rf6.} Qe7 {[%emt 0:00:00]} (38... Re6 $142 39. gxh6 Rxh6) 39. gxh6 {[%emt 0:00:04][%csl Gh6][%cal Rd4g7]} Re5 {[%emt 0:00:03]} 40. Qg4 {[%emt 0:00:04][%csl Gh6][%cal Rg4g7]} f6 $2 {[%emt 0:00:01]} (40... f5 41. Qf4 (41. Rxf5 Qd7 $16) 41... Qf6) 41. Qf4 {[%emt 0:00:03]} Re6 $2 {[%emt 0:00:04]} (41... b4 42. Qxc4 Qe6 43. Qxe6 Rxe6 44. axb4 Kxh6) 42. c3 {[%emt 0:00:02]} (42. Rg2 $142 {Intending Qf5+ and mate.} Re5 43. Rg7+ Qxg7 44. hxg7 Kxg7 45. Qd4) 42... Qf7 {[%emt 0:00:01]} (42... Kh8 $142 43. Rg2 Qf8) 43. Qf5+ {[%emt 0:00:01]} Kxh6 {[%emt 0:00:01]} 44. Rg2 {[%emt 0:00:02][%cal Oh4h5] Strongly threatening h5!} Re5 {[%emt 0:00:02]} 45. Qf4+ {[%emt 0:00:01]} (45. Qc8 $18 {Threatening mate with Qh8+.} Kh7 46. Qxa6) 45... Kh7 $16 {[%emt 0:00:01]} 46. Qg4 {[%emt 0:00:05]} (46. Rf2 $142 {Black must now prevent Qxe5.} Kg7 47. Qg3+ Qg6 48. Qh3) 46... a5 {[%emt 0:00:01][%cal Ob5b4]} 47. Qf4 {[%emt 0:00:02]} ({Better is} 47. Qf3 $16) 47... b4 $1 $11 {[%emt 0:00:00] aiming for ...b3+.} 48. cxb4 {[%emt 0:00:01]} ({But not} 48. axb4 axb4 49. Qg3 (49. cxb4 $2 Qa7+ 50. Kb1 Re1+ 51. Kc2 Qa4+ 52. Kc3 Qb3+ 53. Kd4 Qd3+ 54. Kc5 Re5+ 55. Qxe5 fxe5 $19) 49... b3+ 50. Kb1 Ra5 $17) (48. Rg1 $1 $11 {remains equal.}) 48... axb4 $17 {[%emt 0:00:01]} 49. axb4 {[%emt 0:00:03][%mdl 8192] [#] Now White is beyond hope.} (49. Qg3 $17 bxa3 50. bxa3) 49... Qa7+ $1 {[%emt 0:00:03]} 50. Kb1 {[%emt 0:00:00]} Re1+ {[%emt 0:00:01]} 51. Kc2 {[%emt 0:00:01] [#]} Qa4+ $1 {[%emt 0:00:00]} 52. Kc3 {[%emt 0:00:03]} Qb3+ {[%emt 0:00:02]} 53. Kd4 {[%emt 0:00:01]} Qd3+ {[%emt 0:00:01]} 54. Kc5 {[%emt 0:00:01]} Re5+ {[%emt 0:00:02]} 55. Kc6 {[%emt 0:00:07]} Qd5+ {[%emt 0:00:01]} 56. Kc7 {[%emt 0:00:00]} Re7+ {[%emt 0:00:04] Weighted Error Value: White=0.61/Black=0.21 (precise)} 0-1

[Event "Super United Croatia GCT Blitz 2022"]
[Site "Zagreb"]
[Date "2022.07.23"]
[Round "9"]
[White "Carlsen, Magnus"]
[Black "Saric, Ivan"]
[Result "1-0"]
[ECO "D78"]
[WhiteElo "2864"]
[BlackElo "2680"]
[Annotator "TA"]
[PlyCount "51"]
[EventDate "2022.07.20"]
[EventType "tourn"]
[EventCountry "CRO"]
[SourceTitle "playchess.com"]
[Source "ChessBase"]
[SourceQuality "1"]
[TimeControl "300+2"]

{[%evp 15,51,-25,-20,-27,7,-8,6,0,0,4,31,-38,26,0,96,100,272,283,269,104,295,292,279,-32,-35,-31,138,136,206,200,264,212,540,385,1334,1315,1287,1263]} 1. d4 {[%emt 0:00:01]} Nf6 {[%emt 0:00:01]} 2. c4 {[%emt 0:00:01]} g6 {[%emt 0:00:00]} 3. Nf3 {[%emt 0:00:03]} Bg7 {[%emt 0:00:01]} 4. g3 {[%emt 0:00:02]} c6 {[%emt 0:00:11]} 5. Bg2 {[%emt 0:00:06]} d5 {[%emt 0:00:04]} 6. O-O {[%emt 0:00:02]} dxc4 {[%emt 0:00:08]} 7. Nc3 {[%emt 0:00:02]} O-O {[%emt 0:00:05]} 8. e4 {[%emt 0:00:03]} b5 {[%emt 0:00:07]} 9. Qe2 {[%emt 0:00:01] D78: Fianchetto Grünfeld: 6 0-0 c6.} Na6 {[%emt 0:00:55] 9...Bg4 is becoming the main line.} 10. Rd1 {[%emt 0:00:59] [#]} Nb4 $146 {[%emt 0:00:09]} ({Predecessor:} 10... Bg4 11. h3 Bxf3 12. Bxf3 Nc7 13. a4 e6 14. Bg5 Qd7 15. axb5 Nxb5 16. Nxb5 cxb5 17. Bxf6 Bxf6 {1-0 (31) Mayrhuber,N (2110)-Sedina,E (2258) Corte 2022}) 11. a4 {[%emt 0:00:13] The position is equal.} Bd7 {[%emt 0:00:19]} 12. Ne5 {[%emt 0:00:03]} a6 {[%emt 0:00:22]} 13. Bf4 {[%emt 0:00:40]} (13. Bg5 $14) 13... Be8 {[%emt 0:00:10]} (13... Nh5 $15) 14. d5 {[%emt 0:00:10]} Nh5 {[%emt 0:00:34]} (14... Qc8 $11 {keeps the balance.}) 15. dxc6 $16 {[%emt 0:00:05] 0x0.001eb81d7dfddp-1022s more active pieces. The black rooks are badly placed.} Nxf4 $2 {[%emt 0:00:01]} (15... Qc7 $16 {was called for.}) 16. gxf4 $18 {[%emt 0:00:02]} Qc8 {[%emt 0:00:24] [#]} 17. Nd7 {[%emt 0:00:08]} (17. axb5 axb5 18. Nd5 (18. Nxb5 Rxa1 19. Rxa1 Bxe5 $15) 18... Nxd5 19. exd5 Rxa1 20. Rxa1 Qb8 $16) (17. Nd5 $1 $18 {[%cal Rd5e7] is the precise move to win.} Nxd5 18. exd5) 17... Nd3 $2 {[%emt 0:00:27]} (17... Bxc3 $16 18. axb5 (18. bxc3 Nd3 $14) (18. Nxf8 Kxf8 19. axb5 Nd3 $16) 18... axb5 19. bxc3 (19. Nxf8 Rxa1 20. Rxa1 Bd4 $17) 19... Rxa1 20. Rxa1 Nd3) 18. Nd5 {[%emt 0:00:02] Pair of Knights!} ({Not} 18. Nxf8 Bxc6 19. Nxh7 (19. axb5 axb5 20. Nxh7 Kxh7 $11) 19... Kxh7 $14) (18. axb5 $6 Bxc3 19. Nb6 (19. bxc3 Bxd7 20. cxd7 Qxd7 $11) (19. Nxf8 Bxb2 20. Rxa6 Rxa6 $15) 19... Nxf4 $18) 18... Qd8 {[%emt 0:00:38]} 19. axb5 $2 {[%emt 0:01:11]} ({Only move:} 19. Nxf8 $18 Bxc6 {[#]} 20. Nb4 $1 {[%mdl 512]}) 19... Bxd7 $15 {[%emt 0:00:01]} 20. cxd7 {[%emt 0:00:02] Strongly threatening e5.} Qxd7 $2 {[%emt 0:00:09]} (20... e6 $1 $15 {stays ahead.} 21. Nc3 axb5 22. Rxa8 Qxa8) 21. bxa6 $16 {[%emt 0:00:01] Black must now prevent e5.} ({Of course not} 21. Rxa6 $6 Qxb5 22. Rb6 (22. Nxe7+ Kh8 $11) 22... Qd7 $15) 21... Ra7 {[%emt 0:00:13]} (21... Qb5 $16) 22. e5 $18 {[%emt 0:00:19][%cal Ob2b3] And now b3! would win.} Qe6 {[%emt 0:00:15]} 23. b3 {[%emt 0:00:30]} Nc5 $2 {[%emt 0:00:30]} (23... g5 {is more resistant.} 24. Qe3 Rxa6) 24. Qe3 {[%emt 0:00:08]} Nxb3 $2 {[%emt 0:00:03]} (24... Rxa6 25. Qxc5 Rxa1 26. Rxa1 cxb3) 25. Qxa7 {[%emt 0:00:03]} Nxa1 {[%emt 0:00:01]} 26. Rxa1 {[%emt 0:00:01] Weighted Error Value: White=0.64/Black=0.81} 1-0

[Event "Super United Croatia GCT Blitz 2022"]
[Site "Zagreb"]
[Date "2022.07.23"]
[Round "9"]
[White "So, Wesley"]
[Black "Nepomniachtchi, Ian"]
[Result "1/2-1/2"]
[ECO "E32"]
[WhiteElo "2773"]
[BlackElo "2766"]
[Annotator "TA"]
[PlyCount "97"]
[EventDate "2022.07.20"]
[EventType "tourn"]
[EventCountry "CRO"]
[SourceTitle "playchess.com"]
[Source "ChessBase"]
[SourceQuality "1"]
[TimeControl "300+2"]

{[%evp 13,97,0,0,0,0,0,0,0,0,0,7,4,7,0,30,31,42,28,27,25,27,24,22,17,25,16,22,19,22,22,22,22,21,22,21,15,22,21,21,21,28,33,35,17,22,8,14,12,12,8,20,8,21,18,42,12,27,27,48,48,48,28,29,28,28,28,28,28,79,87,109,55,55,33,33,0,55,37,50,50,50,0,29,0,51,0]} 1. d4 {[%emt 0:00:02]} Nf6 {[%emt 0:00:01]} 2. c4 {[%emt 0:00:01]} e6 {[%emt 0:00:01]} 3. Nc3 {[%emt 0:00:01]} Bb4 {[%emt 0:00:01]} 4. Qc2 {[%emt 0:00:04]} O-O {[%emt 0:00:08]} 5. e4 {[%emt 0:00:01]} d5 {[%emt 0:00:04]} 6. e5 {[%emt 0:00:02]} Ne4 {[%emt 0:00:05]} 7. Bd3 {[%emt 0:00:01]} c5 {[%emt 0:00:04]} 8. Nf3 {[%emt 0:00:07] E32: Nimzo-Indian: Classical (4 Qc2): 4...0-0.} cxd4 {[%emt 0:00:04]} 9. Nxd4 {[%emt 0:00:02]} Nd7 {[%emt 0:00:02]} 10. Bf4 {[%emt 0:00:02] The position is equal.} Qh4 {[%emt 0:00:02]} 11. g3 {[%emt 0:00:01]} Qh5 $132 {[%emt 0:00:04][%mdl 2048] Black is not holding back} 12. O-O {[%emt 0:00:03]} g5 {[%emt 0:00:09]} 13. cxd5 {[%emt 0:00:02]} Nxc3 {[%emt 0:00:04]} (13... Bxc3 $5 14. bxc3 exd5 15. Bxe4 dxe4 $11) 14. dxe6 {[%emt 0:00:12]} gxf4 {[%emt 0:00:02]} 15. exd7 {[%emt 0:00:03]} fxg3 {[%emt 0:00:07]} 16. hxg3 {[%emt 0:00:05] Really sharp!} Bxd7 {[%emt 0:00:03] [#] ...Ba4 is the strong threat.} 17. bxc3 {[%emt 0:00:02]} Rac8 $1 {[%emt 0:00:21][%cal Ba8c8,Bc8c4,Bc4d4][%mdl 32]} 18. Bf5 {[%emt 0:00:23]} Bxc3 {[%emt 0:00:20] This bishop pair is nice.} 19. Qd1 {[%emt 0:00:09]} Qxd1 {[%emt 0:00:07]} 20. Raxd1 {[%emt 0:00:02]} Rc4 {[%emt 0:00:05]} ({Don't do} 20... Bxf5 21. Nxf5 Rc7 22. Rd5 $16) 21. Bxd7 {[%emt 0:00:03][%cal Oe5e6]} Rxd4 {[%emt 0:00:01]} 22. e6 {[%emt 0:00:09]} fxe6 {[%emt 0:00:20]} 23. Bxe6+ {[%emt 0:00:01]} Kg7 {[%emt 0:00:01]} 24. Kg2 {[%emt 0:00:06] [#]} Re8 $146 {[%emt 0:00:12]} ({Predecessor:} 24... b5 25. Rxd4 {½-½ (25) Richardt,M (2171)-Morosi,D (2079) ICCF email 2015}) 25. Rxd4 {[%emt 0:00:28]} Bxd4 $11 {[%emt 0:00:02][%mdl 4096] Endgame KRB-KRB} 26. Bc4 {[%emt 0:00:01]} Rc8 {[%emt 0:00:02]} 27. Bb3 {[%emt 0:00:02]} b5 {[%emt 0:00:14]} 28. Rd1 {[%emt 0:00:07]} Rd8 {[%emt 0:00:03]} 29. Re1 {[%emt 0:00:04]} Rd7 {[%emt 0:00:12] Prevents Re7+.} 30. Rh1 {[%emt 0:00:13]} Bb6 {[%emt 0:00:23]} 31. f4 {[%emt 0:00:20]} Rd2+ {[%emt 0:00:01]} 32. Kh3 {[%emt 0:00:08]} Rd3 {[%emt 0:00:10]} 33. Kg4 {[%emt 0:00:10][%cal Oh1h7] And now Rxh7+! would win.} Rc3 {[%emt 0:00:04]} 34. Rh2 {[%emt 0:00:10]} a5 {[%emt 0:00:05]} 35. Rd2 {[%emt 0:00:09]} a4 {[%emt 0:00:15]} 36. Rd7+ {[%emt 0:00:16]} Kf8 {[%emt 0:00:00]} 37. Bd5 {[%emt 0:00:19]} h5+ {[%emt 0:00:10]} 38. Kxh5 {[%emt 0:00:23] Strongly threatening g4.} Rxg3 {[%emt 0:00:02]} 39. f5 {[%emt 0:00:05] Threatens to win with f6.} Rg7 {[%emt 0:00:30]} 40. Rd6 {[%emt 0:00:08]} Bc7 {[%emt 0:00:14]} (40... Rh7+ $1 $11 {remains equal.} 41. Kg4 Rg7+ 42. Kh5 Rh7+ 43. Kg5 Rg7+ 44. Kh5) 41. Rf6+ $16 {[%emt 0:00:09]} Ke8 {[%emt 0:00:01] [#]} 42. Ra6 {[%emt 0:00:04] White is more active.} (42. Bc6+ $1 $16 Kd8 43. Kh6 (43. Bxb5 Rg2 $16)) 42... Bf4 $14 {[%emt 0:00:05]} 43. Be4 {[%emt 0:00:25]} Kf7 {[%emt 0:00:19]} 44. Bd5+ {[%emt 0:00:29]} Ke8 $1 {[%emt 0:00:04]} 45. Re6+ {[%emt 0:00:08]} Kf8 {[%emt 0:00:13]} 46. Rf6+ {[%emt 0:00:12]} Ke7 {[%emt 0:00:05]} 47. Re6+ {[%emt 0:00:05]} Kf8 {[%emt 0:00:00]} 48. Rf6+ {[%emt 0:00:01]} Ke7 {[%emt 0:00:01]} 49. Re6+ {Weighted Error Value: White=0.08 (flawless) /Black=0.05 (flawless)} (49. Rg6 $1 $14 Rxg6 50. fxg6) 1/2-1/2

[Event "Super United Croatia GCT Blitz 2022"]
[Site "Zagreb"]
[Date "2022.07.23"]
[Round "9"]
[White "Dominguez Perez, Leinier"]
[Black "Vachier-Lagrave, Maxime"]
[Result "0-1"]
[ECO "B90"]
[WhiteElo "2754"]
[BlackElo "2760"]
[Annotator "TA"]
[PlyCount "72"]
[EventDate "2022.07.20"]
[EventType "tourn"]
[EventCountry "CRO"]
[SourceTitle "playchess.com"]
[Source "ChessBase"]
[SourceQuality "1"]
[TimeControl "300+2"]

{[%evp 15,72,26,26,20,23,24,25,26,27,12,39,35,37,31,22,28,76,86,66,69,56,0,38,0,23,22,126,89,120,37,61,28,200,187,168,146,241,169,307,321,556,559,554,535,520,-41,-37,-414,-413,-29964,-29965,-12843,-6647,-5842,-5397,-29996,-29997,-29998,-29999]} 1. e4 {[%emt 0:00:01]} c5 {[%emt 0:00:01]} 2. Nf3 {[%emt 0:00:02]} d6 {[%emt 0:00:01]} 3. d4 {[%emt 0:00:02]} cxd4 {[%emt 0:00:01]} 4. Nxd4 {[%emt 0:00:02]} Nf6 {[%emt 0:00:01]} 5. Nc3 {[%emt 0:00:02]} a6 {[%emt 0:00:01]} 6. Be3 {[%emt 0:00:05]} e5 {[%emt 0:00:01]} 7. Nb3 {[%emt 0:00:01]} Be6 {[%emt 0:00:04]} 8. f3 {[%emt 0:00:02]} h5 {[%emt 0:00:02]} 9. Nd5 {[%emt 0:00:02] B90: Sicilian Najdorf: Unusual White 6th moves, 6 Be3 Ng4 and 6 Be3 e5.} Bxd5 {[%emt 0:00:03]} 10. exd5 {[%emt 0:00:01]} Nbd7 {[%emt 0:00:01]} 11. Qd2 {[%emt 0:00:01] White has an edge.} g6 {[%emt 0:00:02]} 12. O-O-O {[%emt 0:00:05]} Bg7 {[%emt 0:00:02]} 13. Kb1 {[%emt 0:00:02]} Rc8 {[%emt 0:00:02]} 14. Qb4 {[%emt 0:00:28]} Qc7 {[%emt 0:00:06]} 15. c3 {[%emt 0:00:01] [#]} O-O $146 {[%emt 0:00:08] [#]} (15... Bh6 $11 16. Bxh6 Rxh6) ({Predecessor:} 15... Bh6 16. Bf2 O-O 17. h4 Nc5 18. g4 Bf4 19. g5 Nxb3 20. Bb6 Nd2+ 21. Rxd2 Qb8 22. gxf6 Bxd2 {½-½ (29) Hjorth,J (2120)-Chazalette,J (2337) ICCF email 2013}) 16. g4 $1 $16 {[%emt 0:00:02]} hxg4 {[%emt 0:00:43]} 17. fxg4 {[%emt 0:00:02]} b5 {[%emt 0:00:01]} 18. Be2 {[%emt 0:00:56]} Nb6 {[%emt 0:00:07]} 19. Bxb6 {[%emt 0:00:04]} Qxb6 {[%emt 0:00:02]} 20. g5 {[%emt 0:00:02]} Nd7 {[%emt 0:01:02]} (20... Nh5 $1 $11 {remains equal.}) 21. h4 {[%emt 0:00:02][%cal Bh2h4,Bh4h5][%mdl 32]} e4 {[%emt 0:00:01]} 22. Qxe4 {[%emt 0:01:43]} ({White should play} 22. h5 $16 {hxg6 is the strong threat.} Rce8 23. Nd4 (23. h6 Be5 $11)) 22... Rfe8 $14 {[%emt 0:00:08]} 23. Qc2 {[%emt 0:00:04]} (23. Qg2 $5 {[%cal Rh4h5]}) 23... Ne5 $2 {[%emt 0:00:12]} (23... b4 $1 $11 {and Black stays safe.} 24. Bg4 Rc7) 24. h5 $18 {[%emt 0:00:02] Strongly threatening hxg6.} b4 {[%emt 0:00:08]} 25. c4 {[%emt 0:00:01] Black must now prevent Nd4.} Qe3 {[%emt 0:00:09]} (25... Qf2 $16) 26. hxg6 {[%emt 0:00:06]} (26. h6 Bf8 $14) 26... fxg6 {[%emt 0:00:32]} (26... Nxg6 {keeps fighting.} 27. Bd3 (27. Bg4 Rc7 $16) 27... Ne5) 27. Nd4 {[%emt 0:00:10]} Rf8 $2 {[%emt 0:00:01] [#]} (27... a5 28. Ne6 Rf8 29. Nxf8 Rxf8) 28. Bg4 $1 {[%emt 0:00:44][%mdl 512]} Nxg4 {[%emt 0:00:26]} 29. Qxg6 {[%emt 0:00:01]} Rf2 {[%emt 0:00:02] [#]} 30. Qh7+ $2 {[%emt 0:00:44]} ({Not} 30. Rd3 Qe5 31. Qh7+ Kf7 32. Qh5+ Kg8 33. Qh7+ Kf7 34. Qh5+ Kg8 35. Qh7+ $11) (30. Rhe1 $1 $18 {[%cal Re1e3]} Rd2 31. Rxe3 (31. Ne6 {leads to mate.} Rxb2+ 32. Ka1 Rxa2+ 33. Kxa2 Qa3+ 34. Kb1 Qb2#) 31... Rxd1+ 32. Kc2 Nxe3+ 33. Kb3 Rxd4 34. Qe6+ Kh7 35. g6+ Kh6 36. Qxe3+ Kxg6 37. Qe6+ Kg5 38. Qxc8) 30... Kf8 $15 {[%emt 0:00:01] Threatens to win with ...Re8.} 31. Rd3 $2 {[%emt 0:00:11][%mdl 8192]} ({Only move:} 31. Ne6+ $15 Qxe6 32. dxe6 Rxb2+ 33. Ka1 Rh2+ 34. Kb1 Rxh7 35. Rxh7) 31... Bxd4 $19 {[%emt 0:00:40]} 32. Rxe3 {[%emt 0:00:03]} (32. Rxd4 $19 Qxd4 33. Qh8+ Qxh8 34. Rxh8+ Kf7 35. Rxc8) 32... Rxb2+ {[%emt 0:00:01]} 33. Kc1 {[%emt 0:00:05]} Rxc4+ {[%emt 0:00:02]} 34. Rc3 {[%emt 0:00:01]} Bxc3 {[%emt 0:00:04]} 35. Rf1+ {[%emt 0:00:09]} Bf6+ {[%emt 0:00:11]} 36. Kd1 {[%emt 0:00:01]} Ne3+ {[%emt 0:00:01] What a bad dream for White.  Weighted Error Value: White=0.89/Black=0.29 (precise)} 0-1

[Event "Super United Croatia GCT Blitz 2022"]
[Site "Zagreb"]
[Date "2022.07.23"]
[Round "9"]
[White "Topalov, Veselin"]
[Black "Mamedyarov, Shakhriyar"]
[Result "1-0"]
[ECO "B45"]
[WhiteElo "2728"]
[BlackElo "2759"]
[Annotator "TA"]
[PlyCount "55"]
[EventDate "2022.07.20"]
[EventType "tourn"]
[EventCountry "CRO"]
[SourceTitle "playchess.com"]
[Source "ChessBase"]
[SourceQuality "1"]
[TimeControl "300+2"]

{[%evp 11,55,0,0,0,0,0,0,0,6,0,28,-17,44,25,60,45,69,65,63,56,94,94,100,97,93,72,103,32,107,92,298,304,296,294,336,318,298,254,234,236,547,550,556,553,530,506]} 1. e4 {[%emt 0:00:01]} c5 {[%emt 0:00:05]} 2. Nf3 {[%emt 0:00:02]} e6 {[%emt 0:00:01]} 3. d4 {[%emt 0:00:02]} cxd4 {[%emt 0:00:01]} 4. Nxd4 {[%emt 0:00:01]} Nf6 {[%emt 0:00:01]} 5. Nc3 {[%emt 0:00:01]} Nc6 {[%emt 0:00:01]} 6. a3 {[%emt 0:00:05]} Be7 {[%emt 0:00:02]} 7. Nxc6 {[%emt 0:00:02] B45: Sicilian Four Knights.} bxc6 {[%emt 0:00:01]} 8. e5 {[%emt 0:00:01]} Nd5 {[%emt 0:00:02]} 9. Qg4 {[%emt 0:00:02] The position is equal.} Kf8 {[%emt 0:00:06]} 10. Bd2 {[%emt 0:00:02] [#]} Rb8 $146 {[%emt 0:00:03]} ({Predecessor:} 10... h5 11. Qe4 Rb8 12. b3 f5 13. exf6 Bxf6 14. Qf3 Kg8 15. Rd1 Nxc3 16. Bxc3 d5 {½-½ (74) Caruana,F (2820)-Rapport,R (2763) Paris 2021}) 11. Na4 {[%emt 0:00:06]} f6 {[%emt 0:00:26]} (11... h5 $11 12. Qe2 c5) 12. f4 {[%emt 0:00:16]} Nb6 {[%emt 0:00:15]} 13. Ba5 {[%emt 0:00:03]} Qe8 {[%emt 0:00:04]} 14. Nxb6 {[%emt 0:00:03]} axb6 {[%emt 0:00:01]} 15. Bc3 {[%emt 0:00:01] White is more active.} Qg6 {[%emt 0:00:09]} 16. Qf3 {[%emt 0:00:09]} c5 {[%emt 0:00:12]} 17. O-O-O {[%emt 0:00:07]} Bb7 {[%emt 0:00:06]} 18. Qe3 {[%emt 0:00:07]} Bc6 {[%emt 0:00:03]} 19. Bd3 {[%emt 0:00:14]} ({White should try} 19. exf6 $16 Bxf6 20. Bxf6 Qxf6 21. Rg1) 19... Qh6 {[%emt 0:00:02]} (19... f5 $1 $14) 20. Be4 $36 {[%emt 0:00:05][%mdl 2048] Strongly threatening Bxc6. White is on the roll.} Kf7 $2 {[%emt 0:00:12] Black cannot hold the game after this.} (20... f5 $16 21. Bxc6 dxc6) 21. Bxc6 $18 {[%emt 0:00:02]} dxc6 {[%emt 0:00:02] [#]} 22. exf6 {[%emt 0:00:06]} ({Weaker is} 22. Rd7 Rhd8 23. Rhd1 Rxd7 24. Rxd7 Rd8 25. Rxd8 Bxd8 $14) 22... gxf6 {[%emt 0:00:12]} 23. Rhe1 {[%emt 0:00:07][%cal Bh1e1,Be1e3,Be3g3][%mdl 32]} e5 {[%emt 0:00:02]} 24. fxe5 {[%emt 0:00:01]} Qxe3+ {[%emt 0:00:02]} 25. Rxe3 {[%emt 0:00:01] Black must now prevent exf6.} fxe5 {[%emt 0:00:08] [#]} (25... Rbd8 {is a better chance.} 26. Rf1 h5 27. exf6 Bf8) 26. Rf1+ {[%emt 0:00:13] White is clearly winning.} ({Less strong is} 26. Bxe5 Bg5 $18) 26... Kg6 {[%emt 0:00:08]} 27. Rg3+ {[%emt 0:00:02]} Bg5+ {[%emt 0:00:02]} 28. Bd2 {[%emt 0:00:01] Weighted Error Value: White=0.08 (flawless) /Black=0.49} 1-0